bitfinex/quotes_ETHUSD_20240722
["timestamp","ask_amount","ask_price","bid_price","bid_amount"]
[1721689511126,1.7,3450.6,3449.7,5.63804813]
[1721689511127,1.7,3450.2,3449.7,2.73928813]
[1721689511281,1.7,3449.8,3449.7,2.73928813]
[1721689511635,1.7,3449.8,3449.6,3.0]
[1721689511897,1.7,3449.8,3449.2,5.5498303]
[1721689511898,1.7,3449.8,3449.2,2.51]
[1721689513261,1.7,3449.4,3449.2,2.51]
[1721689513800,1.7,3449.4,3449.1,2.73928813]
[1721689514009,1.7,3449.4,3449.2,2.51]
[1721689515820,1.7,3450.1,3449.3,2.89911]
[1721689516032,1.7,3450.1,3449.6,2.51]
[1721689517583,1.7,3450.1,3450.0,2.51]
[1721689517881,2.89,3450.3,3450.0,2.51]
[1721689520281,2.89,3450.3,3450.0,5.949392]
[1721689520628,1.7,3450.4,3450.0,3.050862]
[1721689521286,1.7,3450.4,3450.0,2.51]
[1721689522623,1.7,3450.4,3450.0,5.40847]
[1721689522821,4.59,3450.8,3450.1,2.89841]
[1721689523195,4.59,3450.8,3450.1,5.79681]
[1721689523512,4.59,3450.8,3450.0,2.51]
[1721689523821,5.049,3450.8,3450.0,2.51]
[1721689524019,5.049,3450.8,3450.0,5.40854]
[1721689524020,4.59,3450.8,3450.0,5.40854]
[1721689524226,4.59,3450.8,3450.1,2.89841]
[1721689524387,4.59,3450.8,3450.0,2.51]
[1721689524794,1.7,3450.3,3450.0,2.51]
[1721689527411,1.7,3449.9,3449.6,2.51]
[1721689530092,2.60941748,3449.9,3449.6,2.51]
[1721689530330,0.90941748,3449.8,3449.6,2.51]
[1721689530526,1.7,3449.4,3449.2,2.51]
[1721689531750,2.60941748,3450.0,3449.2,5.40921]
[1721689532222,0.90941748,3449.8,3449.2,5.40921]
[1721689532408,0.90941748,3449.8,3449.2,2.51]
[1721689533128,0.90941748,3449.8,3449.2,5.4092]
[1721689533747,0.90941748,3449.8,3449.2,2.51]
[1721689534247,0.90941748,3449.7,3449.2,2.51]
[1721689535563,0.90941748,3449.7,3449.2,5.40916]
[1721689536066,0.90941748,3449.7,3449.2,2.51]
[1721689536276,0.90941748,3449.6,3449.2,2.51]
[1721689536483,1.21407717,3449.7,3449.2,2.51]
[1721689536484,1.7,3449.4,3449.2,2.51]
[1721689537335,0.90941748,3449.6,3449.2,2.51]
[1721689537723,0.90941748,3449.7,3449.2,2.51]
[1721689537922,0.90941748,3449.7,3449.3,2.89913]
[1721689538165,0.90941748,3449.7,3449.2,5.40921]
[1721689538568,1.7,3449.4,3449.2,2.51]
[1721689539435,1.7,3449.4,3449.2,5.40921]
[1721689540246,1.7,3449.4,3449.2,2.51]
[1721689540642,2.60941748,3449.4,3449.2,2.51]
[1721689541248,0.90941748,3449.3,3449.2,2.51]
[1721689541550,2.60941748,3449.4,3449.2,2.51]
[1721689542233,2.91407717,3449.4,3449.2,2.51]
[1721689542431,0.908939,3449.3,3449.2,2.51]
[1721689542635,3.65765239,3449.4,3448.8,5.24928813]
[1721689542848,0.90881034,3449.0,3448.8,2.51]
[1721689543046,1.7,3448.9,3448.4,5.24928813]
[1721689543293,2.60881034,3448.9,3448.4,5.24928813]
[1721689543449,0.90881034,3448.7,3448.4,5.24928813]
[1721689543652,0.90881034,3448.8,3448.4,2.51]
[1721689544336,2.23352189,3448.9,3448.5,3.0]
[1721689544337,0.90881034,3448.7,3448.5,3.0]
[1721689544538,0.90881034,3448.7,3448.4,2.51]
[1721689544539,1.7,3448.5,3448.4,2.51]
[1721689544743,2.60848978,3448.5,3448.0,2.51]
[1721689544983,0.90848978,3448.4,3448.0,5.41023]
[1721689545292,0.90848978,3448.3,3448.0,5.41023]
[1721689545435,0.90848978,3448.4,3448.0,5.41023]
[1721689545888,2.60848978,3448.5,3448.1,3.0]
[1721689546091,2.60848978,3448.5,3448.4,2.51]
[1721689546092,1.7,3448.5,3448.4,2.51]
[1721689546995,1.7,3448.5,3448.4,5.40989]
[1721689547142,2.60848978,3449.0,3448.4,5.51]
[1721689547344,0.90848978,3448.9,3448.4,2.51]
[1721689547582,2.91174713,3449.0,3448.4,2.51]
[1721689547583,2.60848978,3449.0,3448.5,2.89975]
[1721689547959,2.60848978,3449.0,3448.4,2.51]
[1721689548167,0.90848978,3448.8,3448.4,2.51]
[1721689549509,1.7,3448.6,3448.4,2.51]
[1721689550055,1.7,3448.6,3448.4,5.40988]
[1721689550551,1.7,3448.6,3448.4,2.51]
[1721689550951,0.90848978,3448.8,3448.4,2.51]
[1721689551189,0.90848978,3448.9,3448.5,2.89976]
[1721689551352,0.90848978,3448.9,3448.6,2.89971]
[1721689551709,2.60848978,3449.0,3448.4,2.51]
[1721689551998,0.90848978,3448.7,3448.4,2.51]
[1721689552290,0.90848978,3448.7,3448.0,2.90019]
[1721689552291,0.90848978,3448.5,3448.0,2.51]
[1721689552460,0.90816931,3448.4,3448.0,2.51]
[1721689553273,0.90816931,3448.3,3448.0,2.51]
[1721689553669,0.90816931,3448.4,3448.0,2.51]
[1721689554597,0.90816931,3448.5,3448.0,2.51]
[1721689554894,0.90816931,3448.5,3448.0,5.41018]
[1721689555066,0.90816931,3448.5,3448.4,2.51]
[1721689555271,2.60816931,3448.6,3448.4,2.51]
[1721689556300,0.90816931,3448.5,3448.4,2.51]
[1721689556506,2.60816931,3448.6,3448.4,2.51]
[1721689556686,1.21174713,3448.7,3448.4,2.51]
[1721689556687,0.90816931,3448.7,3448.4,2.51]
[1721689557185,0.90816931,3448.8,3448.4,2.51]
[1721689557504,0.90816931,3448.7,3448.4,2.51]
[1721689557795,2.60816931,3449.0,3448.4,6.471816]
[1721689558102,2.60816931,3449.0,3448.8,2.51]
[1721689559084,0.90816931,3448.9,3448.8,2.51]
[1721689559394,2.60816931,3449.0,3448.8,2.51]
[1721689560787,2.60816931,3449.0,3448.4,2.51]
[1721689561061,2.60816931,3449.0,3448.4,5.40989]
[1721689561310,0.90816931,3448.9,3448.4,2.51]
[1721689561488,2.91174713,3449.0,3448.4,2.51]
[1721689561489,0.90816931,3448.8,3448.4,2.51]
[1721689561803,0.90816931,3448.9,3448.4,2.51]
[1721689562016,1.7,3449.0,3448.6,2.89972]
[1721689562504,2.60816931,3449.0,3448.4,6.49652994]
[1721689562673,1.7,3449.0,3448.8,5.40955]
[1721689563170,1.7,3449.0,3448.8,2.51]
[1721689563360,1.7,3449.0,3448.8,5.40955]
[1721689563565,1.7,3449.0,3448.8,2.51]
[1721689564674,2.60816931,3449.0,3448.8,2.51]
[1721689565515,0.90816931,3448.9,3448.8,2.50908734]
[1721689565808,2.60816931,3449.0,3448.8,2.50908734]
[1721689566559,0.90816931,3449.1,3448.8,5.40860734]
[1721689566763,1.7,3449.0,3448.8,2.50908734]
[1721689566999,2.60816931,3449.0,3448.8,2.50908734]
[1721689567461,0.90816931,3448.9,3448.8,2.50908734]
[1721689567864,2.91174713,3449.0,3448.8,2.50908734]
[1721689568075,0.90815686,3448.9,3448.8,2.50908734]
[1721689568824,0.90831917,3448.9,3448.8,2.50908734]
[1721689569563,1.21174713,3448.9,3448.8,2.50908734]
[1721689570364,2.91174713,3449.0,3448.8,2.50908734]
[1721689570863,0.90903121,3448.9,3448.8,2.50908734]
[1721689571062,0.90900841,3448.9,3448.8,2.50908734]
[1721689571270,2.91174713,3449.0,3448.8,2.50908734]
[1721689571492,2.91174713,3449.0,3448.8,5.40862734]
[1721689571864,3.21436477,3449.0,3448.8,2.50908734]
[1721689572063,1.53405433,3448.9,3448.8,2.50908734]
[1721689572569,1.83745387,3448.9,3448.8,2.50908734]
[1721689572996,0.32143648,3448.9,3448.8,2.50908734]
[1721689573194,1.83737829,3448.9,3448.8,2.50908734]
[1721689574005,0.32143648,3448.9,3448.4,2.51]
[1721689574187,0.90970627,3448.5,3448.4,2.51]
[1721689574375,1.2129417,3448.5,3448.4,2.51]
[1721689574582,2.9129417,3448.6,3448.4,2.51]
[1721689574897,1.51617713,3448.7,3448.6,5.79944]
[1721689574898,0.91005369,3448.7,3448.6,5.79944]
[1721689575108,1.2129417,3448.9,3448.8,2.89955]
[1721689575109,0.91005369,3448.9,3448.8,2.89955]
[1721689575273,0.91005369,3449.0,3448.9,2.89947]
[1721689575774,0.91005369,3449.0,3448.8,5.40955]
[1721689575775,0.91005369,3449.0,3448.8,5.40947]
[1721689575975,0.91005369,3448.9,3448.8,2.51]
[1721689576180,1.2129417,3449.0,3448.8,2.51]
[1721689576364,0.91044161,3448.9,3448.8,2.51]
[1721689576565,1.2129417,3449.0,3448.8,8.4095]
[1721689576766,0.91045144,3448.9,3448.8,5.4095]
[1721689576986,0.91045144,3448.9,3448.8,8.4095]
[1721689577177,0.91068117,3448.9,3448.8,8.4095]
[1721689577387,1.2129417,3449.1,3448.9,2.89947]
[1721689577593,0.91075408,3449.0,3448.9,8.26754]
[1721689577967,1.2129417,3449.2,3449.0,5.79878]
[1721689578171,1.2129417,3449.3,3449.1,5.40925]
[1721689578473,0.91083029,3449.2,3449.1,5.4093]
[1721689578785,1.2129417,3449.2,3449.1,5.4093]
[1721689580011,1.2129417,3449.2,3449.1,9.73818644]
[1721689580320,0.91094015,3449.4,3449.1,6.93958644]
[1721689580534,0.91094015,3449.6,3449.4,5.21315]
[1721689580668,1.51802315,3450.0,3449.6,2.89883]
[1721689580872,1.51802315,3450.3,3450.1,2.3141]
[1721689581120,1.51802315,3450.3,3450.2,2.89838]
[1721689581317,2.89,3450.4,3450.2,2.89838]
[1721689581606,2.89,3450.4,3450.3,2.89829]
[1721689581816,1.7,3450.9,3450.4,2.89821]
[1721689581817,1.51803049,3450.6,3450.4,2.89821]
[1721689581993,1.51803049,3450.8,3450.7,5.79592]
[1721689582202,1.7,3451.3,3450.7,5.79592]
[1721689582203,1.51803049,3451.3,3451.0,2.89771]
[1721689582413,2.4768,3452.1,3450.9,5.21189]
[1721689582414,1.51803049,3451.4,3451.2,2.89754]
[1721689582616,1.51803049,3451.4,3450.9,2.3141]
[1721689582617,1.51803049,3451.5,3451.3,2.51]
[1721689583226,1.51803049,3451.7,3451.3,2.51]
[1721689583884,3.21803049,3451.8,3451.3,2.51]
[1721689584199,4.59,3452.0,3451.5,2.89722]
[1721689584786,4.59,3452.0,3451.3,2.51]
[1721689585093,4.59,3452.0,3451.4,2.89736]
[1721689586218,4.59,3452.0,3451.5,2.89725]
[1721689587939,2.89,3452.0,3451.9,5.7939]
[1721689588083,2.89,3452.4,3451.8,2.51]
[1721689588288,2.89,3452.4,3451.7,2.3175]
[1721689588289,2.90872338,3453.3,3452.3,2.51]
[1721689588490,1.7,3453.3,3453.1,2.51]
[1721689588842,1.7,3452.9,3452.7,2.51]
[1721689590103,1.7,3452.9,3452.5,2.73928813]
[1721689590766,2.3332,3453.1,3452.5,2.73928813]
[1721689590908,1.7,3452.7,3452.5,5.63572813]
[1721689591108,1.7,3453.3,3452.6,2.89636]
[1721689591316,2.71225469,3453.3,3453.0,2.51]
[1721689595235,1.7,3453.3,3453.0,2.51]
[1721689597277,1.7,3453.3,3452.6,2.51]
[1721689597623,1.7,3452.9,3452.6,2.51]
[1721689603062,1.7,3452.9,3452.5,2.73928813]
[1721689603449,1.7,3452.5,3452.2,2.51]
[1721689605968,1.7,3452.5,3451.7,5.77864259]
[1721689605969,1.7,3452.1,3451.7,2.73928813]
[1721689607472,1.7,3451.7,3451.3,12.24]
[1721689607631,1.7,3451.7,3451.2,2.51]
[1721689608628,1.7,3451.3,3450.8,5.24928813]
[1721689608831,1.7,3451.3,3450.8,2.51]
[1721689610131,1.7,3451.3,3450.5,12.24]
[1721689610132,1.7,3451.7,3451.3,2.89744]
[1721689610365,1.7,3451.8,3451.6,2.51]
[1721689611268,1.7,3452.4,3451.6,2.51]
[1721689611466,2.40542,3452.4,3451.6,2.51]
[1721689613545,1.7,3452.0,3451.6,2.51]
[1721689616160,1.7,3452.0,3451.3,2.73928813]
[1721689616161,1.7,3451.6,3451.3,2.73928813]
[1721689616367,1.7,3451.6,3450.8,5.24928813]
[1721689616549,1.7,3451.6,3450.8,7.28800694]
[1721689616744,1.7,3451.6,3450.8,5.24928813]
[1721689616984,1.7,3451.2,3450.8,5.24928813]
[1721689619395,0.29980479,3452.3,3450.8,5.24928813]
[1721689619551,2.89,3452.1,3451.8,2.51]
[1721689619749,1.7,3452.2,3451.8,2.51]
[1721689623071,2.89,3452.5,3451.8,2.51]
[1721689623072,2.89,3452.5,3451.9,2.4718]
[1721689623307,2.89,3452.5,3452.3,2.51]
[1721689624080,1.7,3452.2,3451.9,2.51]
[1721689624875,2.89,3452.5,3451.9,2.51]
[1721689625178,2.89,3452.5,3452.3,2.51]
[1721689626472,1.7,3452.2,3451.9,2.51]
[1721689628024,1.7,3451.7,3451.3,2.73928813]
[1721689628322,2.60467516,3451.7,3451.3,2.73928813]
[1721689628721,0.90467516,3451.6,3451.3,2.73928813]
[1721689628890,1.28601501,3451.6,3451.3,2.73928813]
[1721689629087,1.7,3451.1,3450.7,5.24928813]
[1721689629288,1.7,3451.1,3450.7,2.51]
[1721689629883,0.90467516,3451.3,3450.7,2.51]
[1721689630113,0.90467516,3451.6,3451.2,2.51]
[1721689630349,2.60467516,3451.8,3451.2,6.49449]
[1721689630489,1.7,3451.8,3451.2,6.49449]
[1721689630798,3.79467516,3452.0,3451.6,2.89714]
[1721689631000,2.89,3452.0,3451.7,6.24306]
[1721689633714,2.89,3452.0,3451.7,6.867421]
[1721689635634,2.89,3452.0,3451.7,3.970311]
[1721689635791,2.89,3452.0,3451.7,3.346]
[1721689636219,0.90467516,3451.9,3451.7,3.346]
[1721689636696,3.79467516,3452.0,3451.7,3.346]
[1721689636897,0.90467516,3451.9,3451.7,3.346]
[1721689637612,3.79467516,3452.0,3451.7,3.346]
[1721689637816,0.90467516,3451.9,3451.7,3.346]
[1721689638022,0.90467516,3451.9,3451.3,2.3076]
[1721689638332,0.90467516,3451.9,3451.3,5.3076]
[1721689638333,0.90467516,3451.7,3451.3,5.3076]
[1721689638531,1.7,3451.7,3451.3,4.72905281]
[1721689638735,0.90467516,3451.6,3451.3,3.0]
[1721689639820,0.90467516,3451.5,3451.3,3.0]
[1721689640135,2.90872338,3451.7,3451.3,3.0]
[1721689640136,0.90467516,3451.6,3451.3,3.0]
[1721689640296,2.90872338,3451.7,3451.3,3.0]
[1721689640297,0.90467516,3451.5,3451.3,3.0]
[1721689641239,0.90467516,3451.5,3451.2,2.73928813]
[1721689641413,2.90872338,3451.3,3451.2,2.73928813]
[1721689641796,2.91337911,3451.3,3451.2,2.73928813]
[1721689642002,2.91337911,3451.3,3450.6,11.46156813]
[1721689642353,0.91003357,3451.1,3450.6,8.56358813]
[1721689642511,1.7,3450.8,3450.2,2.73928813]
[1721689642698,0.91003357,3450.5,3450.2,2.73928813]
[1721689642895,1.21337911,3450.7,3450.2,2.73928813]
[1721689642896,0.91003357,3450.4,3450.2,2.73928813]
[1721689643111,0.91003357,3450.4,3450.1,5.8243]
[1721689643296,0.91003357,3450.3,3450.1,5.8243]
[1721689643519,0.91003357,3450.4,3450.1,5.8243]
[1721689643701,0.91003357,3450.4,3450.1,6.24445]
[1721689643904,1.21337911,3450.6,3450.1,4.218275]
[1721689643905,0.91003357,3450.6,3450.1,4.218275]
[1721689644115,0.91003357,3450.6,3450.3,2.89828]
[1721689644314,0.91003357,3450.7,3450.3,2.95624017]
[1721689645029,2.61003357,3450.8,3450.3,2.95624017]
[1721689645237,0.91003357,3450.7,3450.2,2.89837]
[1721689645595,0.91003357,3450.7,3450.1,7.116685]
[1721689645801,0.91003357,3450.6,3450.1,7.116685]
[1721689646158,0.91003357,3450.6,3450.4,2.89821]
[1721689646297,0.91003357,3450.7,3450.4,2.89821]
[1721689646500,2.61003357,3450.8,3450.7,3.346]
[1721689647314,1.7,3450.8,3450.7,3.346]
[1721689648040,2.91337911,3450.8,3450.7,3.346]
[1721689649817,1.7,3450.8,3450.7,3.346]
[1721689650356,0.91061354,3451.1,3450.8,2.8978]
[1721689650517,0.91061354,3451.1,3450.7,6.868356]
[1721689650721,0.91061354,3451.1,3450.8,2.89787]
[1721689651180,0.91061354,3451.1,3450.7,3.970416]
[1721689651320,0.91061354,3451.0,3450.7,3.346]
[1721689652367,1.21337911,3451.1,3450.9,2.51]
[1721689652525,1.21337911,3451.0,3450.9,2.51]
[1721689652730,0.73210932,3451.0,3450.9,2.51]
[1721689654222,1.7,3450.8,3450.5,3.348]
[1721689654427,1.2142919,3450.7,3450.5,3.348]
[1721689654757,0.91068072,3450.7,3450.5,3.348]
[1721689655436,0.91068072,3450.8,3450.5,3.348]
[1721689655644,0.91068072,3450.8,3450.6,3.753189]
[1721689656044,0.91068072,3450.8,3450.7,2.89796]
[1721689656241,0.91068072,3450.8,3450.6,0.855209]
[1721689656447,0.91068072,3450.7,3450.6,0.855209]
[1721689656646,0.91068072,3450.8,3450.6,0.855209]
[1721689656834,0.91068072,3450.8,3450.5,6.24608]
[1721689657509,0.91068072,3450.7,3450.4,5.6539]
[1721689657708,0.91068072,3450.8,3450.5,2.89811]
[1721689658772,0.91068072,3450.8,3450.4,5.79720565]
[1721689658993,0.91068072,3450.6,3450.4,5.79720565]
[1721689659196,1.2142919,3451.0,3450.7,2.89796]
[1721689659384,1.2142919,3451.2,3450.9,3.348]
[1721689659582,1.82106235,3451.6,3450.9,3.348]
[1721689659583,1.21398902,3451.4,3451.1,2.4092]
[1721689659761,1.51755195,3451.8,3451.6,2.8972]
[1721689660071,3.0073814,3453.1,3451.3,6.24543]
[1721689660072,3.21755195,3452.0,3451.4,2.89732]
[1721689660271,3.21755195,3452.0,3451.9,3.348]
[1721689660471,1.7,3452.0,3451.9,3.348]
[1721689660996,3.21722807,3452.0,3451.9,3.348]
[1721689661165,1.7,3452.0,3451.9,3.348]
[1721689661798,2.05210624,3452.0,3451.9,3.348]
[1721689661961,1.7,3451.6,3451.4,3.348]
[1721689662677,1.51731308,3451.7,3451.4,3.348]
[1721689663496,1.51731308,3451.8,3451.4,3.348]
[1721689663705,1.51731308,3451.8,3451.5,2.2802]
[1721689663887,1.51731308,3452.1,3451.5,5.74023]
[1721689664088,1.51731308,3452.1,3451.9,3.348]
[1721689664461,1.51731308,3452.0,3451.9,3.348]
[1721689665094,1.7,3452.3,3451.9,3.348]
[1721689665397,1.51721783,3452.0,3451.9,3.348]
[1721689665762,3.52066139,3452.3,3451.9,3.348]
[1721689666101,2.17272753,3452.2,3451.9,3.348]
[1721689666612,1.51727588,3452.0,3451.9,3.348]
[1721689666911,0.35206614,3452.2,3451.9,3.348]
[1721689668264,1.51730857,3452.0,3451.9,3.348]
[1721689668580,1.7,3452.3,3451.9,3.348]
[1721689668783,1.517326,3452.0,3451.9,3.348]
[1721689669560,1.51744731,3452.0,3451.9,3.348]
[1721689669795,0.50382385,3452.0,3451.9,3.348]
[1721689671503,1.82120803,3452.2,3451.9,3.348]
[1721689674378,1.82146765,3452.2,3451.9,3.348]
[1721689675829,1.51790922,3452.0,3451.9,3.348]
[1721689676189,1.51790922,3452.0,3451.9,2.509]
[1721689676495,1.51783321,3452.0,3451.9,2.509]
[1721689677423,1.7,3452.3,3451.9,2.509]
[1721689677727,1.51784973,3452.0,3451.9,2.509]
[1721689679784,4.27141968,3452.3,3451.9,2.509]
[1721689680507,1.51796909,3452.0,3451.9,2.509]
[1721689680750,1.82156291,3452.2,3451.9,2.509]
[1721689680903,1.5179955,3452.0,3451.9,2.509]
[1721689681258,1.82156429,3452.2,3451.9,2.509]
[1721689681395,2.17372058,3452.2,3451.9,2.509]
[1721689681594,1.82156429,3452.1,3451.9,2.509]
[1721689682042,2.17372058,3452.2,3451.9,2.509]
[1721689682945,1.51804927,3452.0,3451.9,2.509]
[1721689683597,1.51804927,3452.1,3451.9,2.509]
[1721689683797,1.51796759,3452.1,3451.9,2.509]
[1721689683999,1.51796759,3452.0,3451.9,2.509]
[1721689684193,1.51796759,3452.1,3451.9,2.509]
[1721689685902,1.7,3452.3,3451.9,2.509]
[1721689686099,5.8,3452.6,3451.9,2.509]
[1721689686100,1.51784568,3452.1,3451.9,3.27701]
[1721689686312,0.91056407,3452.1,3452.0,2.509]
[1721689686743,1.21418671,3452.1,3452.0,2.509]
[1721689687646,1.21418671,3452.2,3452.0,2.509]
[1721689687957,1.21418671,3452.1,3452.0,2.509]
[1721689688162,0.91048497,3452.1,3452.0,2.509]
[1721689688315,1.21418671,3452.2,3452.0,2.509]
[1721689688518,1.21418671,3452.1,3452.0,2.509]
[1721689689456,0.44315636,3452.1,3452.0,2.509]
[1721689689876,1.82085222,3452.2,3452.0,4.802]
[1721689690161,1.21407491,3452.1,3452.0,4.802]
[1721689691762,2.91407491,3452.1,3452.0,2.509]
[1721689691981,1.7,3452.1,3452.0,2.509]
[1721689692127,2.05213692,3452.1,3452.0,2.509]
[1721689692523,1.7,3452.1,3452.0,2.509]
[1721689696184,3.52208289,3452.1,3452.0,2.509]
[1721689696356,1.82208289,3452.1,3451.6,2.509]
[1721689696552,1.82208289,3452.1,3451.3,5.03228813]
[1721689696553,3.52208289,3451.7,3451.3,2.73928813]
[1721689696753,1.82293951,3451.6,3451.3,2.73928813]
[1721689696943,1.82293951,3451.5,3451.3,2.73928813]
[1721689697142,1.82293951,3451.4,3451.3,2.73928813]
[1721689697689,1.7,3451.3,3451.2,2.509]
[1721689697854,1.7,3450.9,3450.8,2.509]
[1721689698882,3.52311921,3450.9,3450.8,2.509]
[1721689699093,2.29588192,3450.9,3450.8,2.509]
[1721689699294,2.29588192,3450.9,3450.2,14.97928813]
[1721689699295,1.7,3450.5,3450.4,2.509]
[1721689699583,1.7,3450.1,3450.0,2.509]
[1721689700280,3.2184204,3450.1,3450.0,2.509]
[1721689700483,1.7,3450.1,3450.0,2.509]
[1721689701684,3.21767068,3450.1,3450.0,2.509]
[1721689702472,2.31076707,3450.1,3449.7,0.14186523]
[1721689702678,1.7,3449.7,3449.6,2.509]
[1721689702884,2.91362845,3449.7,3449.6,2.509]
[1721689703093,1.7,3449.7,3449.6,2.509]
[1721689703858,0.91019275,3449.9,3449.6,2.509]
[1721689704154,0.91019275,3450.0,3449.6,2.509]
[1721689704577,1.7,3450.1,3449.6,2.509]
[1721689704578,0.91019275,3449.9,3449.6,2.509]
[1721689705183,0.91019275,3450.0,3449.6,2.509]
[1721689706201,2.61019275,3450.1,3449.6,2.509]
[1721689706975,2.61019275,3450.1,3449.4,2.88357201]
[1721689706976,2.61019275,3450.1,3450.0,2.509]
[1721689707164,1.7,3450.1,3450.0,2.509]
[1721689707514,2.61019275,3450.1,3450.0,2.509]
[1721689707867,1.7,3450.1,3450.0,2.509]
[1721689709032,3.80019275,3450.2,3450.0,2.509]
[1721689709185,2.61019275,3450.6,3450.1,0.2509]
[1721689709363,2.61019275,3450.8,3450.5,2.509]
[1721689710509,1.7,3450.8,3450.5,2.509]
[1721689710864,0.91019275,3451.1,3450.5,2.509]
[1721689711071,6.71019275,3451.4,3451.1,2.509]
[1721689711610,5.8,3451.4,3451.1,2.509]
[1721689712109,6.71019275,3451.4,3451.1,2.509]
[1721689712477,1.7,3450.8,3450.7,2.509]
[1721689712833,1.7,3450.8,3450.5,0.14597682]
[1721689712972,0.17,3450.7,3450.5,0.14597682]
[1721689713312,1.7,3450.8,3450.3,2.509]
[1721689713668,1.7,3450.8,3450.3,2.64970471]
[1721689715559,1.7,3450.8,3450.7,2.509]
[1721689716654,2.61019275,3451.0,3450.7,2.509]
[1721689717118,0.38238212,3450.9,3450.7,2.509]
[1721689717820,2.61019275,3451.0,3450.7,2.509]
[1721689718333,1.7,3451.0,3450.7,2.509]
[1721689719118,2.61019275,3451.0,3450.7,2.509]
[1721689719653,1.7,3451.0,3450.7,2.509]
[1721689720463,0.62336667,3451.4,3451.0,2.89765]
[1721689720676,4.11362845,3451.5,3451.0,2.89765]
[1721689720677,2.9,3451.5,3451.3,2.509]
[1721689720964,2.38824789,3451.5,3451.3,2.509]
[1721689722232,1.46184789,3451.5,3451.3,2.509]
[1721689723235,1.7,3451.4,3451.3,2.509]
[1721689723562,1.7,3451.0,3450.9,2.509]
[1721689726338,1.99136284,3451.0,3450.5,2.509]
[1721689726536,1.7,3450.6,3450.5,2.509]
[1721689726736,1.7,3450.6,3450.5,5.509]
[1721689727140,1.7,3450.6,3450.3,2.73928813]
[1721689727674,2.91362845,3450.6,3450.3,2.73928813]
[1721689727846,0.44276391,3450.5,3450.3,2.73928813]
[1721689728430,1.7,3450.2,3449.7,17.48828813]
[1721689728633,1.7,3450.2,3449.7,2.509]
[1721689728870,2.91362845,3450.2,3449.7,2.509]
[1721689729269,1.7,3449.8,3449.7,2.509]
[1721689729577,1.7,3449.4,3449.3,2.73928813]
[1721689729785,1.7,3449.4,3449.1,0.14584465]
[1721689729952,1.7,3449.4,3448.9,2.509]
[1721689730144,1.7,3449.4,3448.9,2.65011385]
[1721689730631,2.60859901,3449.4,3448.9,2.65011385]
[1721689731279,1.7,3449.4,3448.9,2.65011385]
[1721689731438,1.7,3449.4,3448.9,3.18905405]
[1721689732369,1.7,3449.4,3448.9,2.509]
[1721689732789,1.7,3449.4,3449.3,2.509]
[1721689734800,2.60859901,3449.4,3449.3,2.509]
[1721689735312,1.21362845,3449.5,3449.3,2.509]
[1721689735472,0.90821546,3449.6,3449.3,2.509]
[1721689735807,2.60821546,3449.6,3449.3,2.509]
[1721689736005,1.7,3449.6,3449.3,2.509]
[1721689736373,2.60821546,3449.6,3449.3,2.509]
[1721689736584,0.90821546,3449.5,3449.3,2.509]
[1721689736917,0.43104625,3449.4,3449.3,2.509]
[1721689737112,1.33926171,3449.4,3449.3,2.509]
[1721689737464,0.43104625,3449.4,3449.3,2.509]
[1721689737662,1.7,3449.6,3449.3,2.509]
[1721689738182,4.11362845,3449.9,3449.3,2.509]
[1721689738384,5.01936215,3450.7,3449.8,2.509]
[1721689738385,0.18926528,3450.2,3449.8,2.509]
[1721689738577,0.18926528,3450.2,3450.1,2.509]
[1721689739060,2.67296133,3450.4,3450.1,2.509]
[1721689739266,1.03044361,3450.3,3450.1,2.509]
[1721689740965,2.24155705,3450.3,3450.1,2.509]
[1721689741329,1.21111344,3450.2,3450.1,2.509]
[1721689741520,1.03044361,3450.3,3450.1,2.509]
[1721689741521,2.24155705,3450.3,3450.1,2.509]
[1721689741808,1.03044361,3450.3,3450.1,2.509]
[1721689742025,1.7,3450.1,3449.4,3.0]
[1721689742198,1.7,3450.1,3450.0,2.509]
[1721689745404,1.7,3450.6,3450.5,2.509]
[1721689745627,1.7,3450.6,3450.1,5.509]
[1721689746473,1.7,3450.6,3450.1,2.509]
[1721689746678,0.5255044,3450.5,3450.1,2.509]
[1721689748135,1.7,3450.6,3450.1,2.509]
[1721689748626,1.51568754,3450.5,3450.1,2.509]
[1721689749135,1.7,3450.2,3450.1,2.509]
[1721689749348,1.51568754,3450.6,3450.1,2.509]
[1721689749490,2.03958336,3450.7,3450.5,2.509]
[1721689749491,3.5552709,3450.7,3450.5,2.509]
[1721689749690,4.26268049,3450.7,3450.5,2.509]
[1721689750742,2.74699295,3450.7,3450.5,2.509]
[1721689750918,2.03958336,3450.7,3450.5,2.509]
[1721689752694,3.25201593,3450.7,3450.5,2.509]
[1721689753206,1.16863508,3450.7,3450.5,2.509]
[1721689755630,1.00089282,3450.7,3450.5,2.509]
[1721689757431,2.21332539,3450.7,3450.5,2.509]
[1721689757732,1.21243257,3450.6,3450.5,2.509]
[1721689757945,1.00089282,3450.7,3450.5,2.509]
[1721689758106,1.00089282,3450.7,3450.5,2.65628551]
[1721689758505,1.21243257,3450.9,3450.5,2.65628551]
[1721689758506,0.18586004,3450.9,3450.5,2.65628551]
[1721689758700,1.7,3451.2,3450.8,2.509]
[1721689758701,2.66662677,3451.2,3450.8,2.509]